fUST/lending_fUST_20240115
["ID","MTS","AMOUNT","RATE_DAILY","PERIOD"]
[311654157,1705284644730,-625.03,0.00028766,2]
[311654158,1705284644740,-625.03,0.00028766,2]
[311654159,1705284644749,-500.0,0.00028767,2]
[311654160,1705284644759,-2033.69,0.00028767,2]
[311654161,1705284644768,-589.20604364,0.00028767,2]
[311654162,1705284644778,-530.35,0.00028767,2]
[311654163,1705284644787,-1992.7,0.00028767,2]
[311654164,1705284644797,-500.0,0.00028767,2]
[311654165,1705284644807,-576.0,0.00028767,2]
[311654166,1705284644816,-500.0,0.00028767,2]
[311654167,1705284644825,-500.0,0.00028767,2]
[311654168,1705284644834,-1175.88,0.00028767,2]
[311654169,1705284644845,-500.0,0.00028767,2]
[311654170,1705284644854,-511.01,0.00028767,2]
[311654171,1705284644863,-500.0,0.00028767,2]
[311654172,1705284644872,-839.18,0.00028767,2]
[311654173,1705284644881,-1107.63,0.00028767,2]
[311654174,1705284644890,-500.0,0.00028767,2]
[311654175,1705284644898,-420.73170956,0.00028767,2]
[311654176,1705284644908,-322.79178692,0.00028767,2]
[311654177,1705284644919,-750.66,0.00028767,2]
[311654178,1705284644928,-500.0,0.00028767,2]
[311654179,1705284644937,-692.74,0.00028767,2]
[311654180,1705284644947,-559.72216916,0.00028767,2]
[311654181,1705284644956,-580.68,0.00028767,2]
[311654182,1705284644965,-1242.23,0.00028767,2]
[311654183,1705284644974,-531.3,0.00028767,2]
[311654184,1705284644983,-500.0,0.00028767,2]
[311654185,1705284644992,-4949.31,0.00028767,2]
[311654186,1705284645001,-626.7,0.00028767,2]
[311654187,1705284645010,-702.22,0.00028767,2]
[311654188,1705284645020,-593.14,0.00028767,2]
[311654189,1705284645030,-574.04,0.00028767,2]
[311654190,1705284645039,-884.28,0.00028767,2]
[311654191,1705284645048,-500.0,0.00028767,2]
[311654192,1705284645058,-500.0,0.00028767,2]
[311654193,1705284645067,-500.0,0.00028767,2]
[311654194,1705284645076,-981.39,0.00028767,2]
[311654195,1705284645085,-155.0,0.00028767,2]
[311654196,1705284645096,-773.62,0.00028767,2]
[311654197,1705284645105,-500.0,0.00028767,2]
[311654198,1705284645114,-2027.95,0.00028767,2]
[311654199,1705284645123,-1062.99,0.00028767,2]
[311654200,1705284645132,-500.0,0.00028767,2]
[311654201,1705284645141,-574.72,0.00028767,2]
[311654202,1705284645151,-1182.3,0.00028767,2]
[311654203,1705284645160,-606.23,0.00028767,2]
[311654204,1705284645172,-11554.09,0.00028767,2]
[311654205,1705284645181,-953.74,0.00028767,2]
[311654206,1705284645190,-2076.3,0.00028767,2]
[311654207,1705284645200,-500.0,0.00028767,2]
[311654208,1705284645209,-18667.84,0.00028767,2]
[311654209,1705284645219,-1024.66,0.00028767,2]
[311654210,1705284645228,-3532.88,0.00028767,2]
[311654211,1705284645237,-500.0,0.00028767,2]
[311654212,1705284645246,-5295.12,0.00028767,2]
[311654213,1705284645256,-500.0,0.00028767,2]
[311654214,1705284645265,-5666.48,0.00028767,2]
[311654215,1705284645276,-500.0,0.00028767,2]
[311654216,1705284645292,-1533.71,0.00028767,2]
[311654217,1705284645302,-3118.33,0.00028767,2]
[311654218,1705284645313,-155.02015262,0.00029,2]
[311654219,1705284645323,-2046.884197,0.00029,2]
[311654220,1705284645400,-151.0,0.00029008,2]
[311654221,1705284645409,-212.00277784,0.00029008,3]
[311654222,1705284645421,-625.03,0.00029032,2]
[311654223,1705284645430,-625.03,0.00029032,2]
[311654224,1705284645440,-625.03,0.00029032,2]
[311654225,1705284645449,-625.03,0.00029032,2]
[311654226,1705284645458,-625.23552987,0.00029032,2]
[311654227,1705284645467,-401.939098,0.00029033,2]
[311654228,1705284645476,-401.939098,0.00029033,2]
[311654229,1705284645485,-1581.745961,0.00029039,2]
[311654230,1705284645494,-1581.745961,0.00029039,2]
[311654231,1705284645504,-242.67449373,0.00029039,2]
[311654232,1705284645513,-2305.37797556,0.00029039,2]
[311654233,1705284645522,-155.06823002,0.0002904,2]
[311654234,1705284645531,-500.0,0.00029041,2]
[311654235,1705284645540,-2033.69,0.00029041,2]
[311654236,1705284645549,-530.35,0.00029041,2]
[311654237,1705284645559,-1992.7,0.00029041,2]
[311654238,1705284645569,-500.0,0.00029041,2]
[311654239,1705284645579,-576.0,0.00029041,2]
[311654240,1705284645588,-500.0,0.00029041,2]
[311654241,1705284645598,-500.0,0.00029041,2]
[311654242,1705284645607,-1175.88,0.00029041,2]
[311654243,1705284645618,-500.0,0.00029041,2]
[311654244,1705284645627,-511.01,0.00029041,2]
[311654245,1705284645637,-500.0,0.00029041,2]
[311654246,1705284645648,-839.18,0.00029041,2]
[311654247,1705284645657,-1107.63,0.00029041,2]
[311654248,1705284645668,-500.0,0.00029041,2]
[311654249,1705284645677,-750.66,0.00029041,2]
[311654250,1705284645687,-500.0,0.00029041,2]
[311654251,1705284645696,-692.74,0.00029041,2]
[311654252,1705284645706,-580.68,0.00029041,2]
[311654253,1705284645716,-1242.23,0.00029041,2]
[311654254,1705284645725,-531.3,0.00029041,2]
[311654255,1705284645735,-500.0,0.00029041,2]
[311654256,1705284645744,-1099.56481373,0.00029041,2]
[311654257,1705284645906,-500.0,0.00027397,2]
[311654258,1705284645918,-500.0,0.00028767,2]
[311654259,1705284645928,-2554.26049224,0.00029041,2]
[311654260,1705284645939,-363.15,0.00029041,2]
[311654261,1705284645951,-932.33469403,0.00029041,2]
[311654262,1705284645961,-626.7,0.00029041,2]
[311654263,1705284645970,-342.08342645,0.00029041,2]
[311654266,1705284646154,-223.61854787,0.00027397,2]
[311654267,1705284646162,-500.0,0.00027944,4]
[311654268,1705284646173,-500.0,0.00027944,4]
[311654269,1705284646181,-473.04677902,0.00027944,4]
[311654270,1705284646190,-494.26982161,0.00027944,4]
[311654271,1705284646200,-163.78093712,0.00027944,4]
[311654272,1705284646209,-500.0,0.00027944,4]
[311654273,1705284646218,-374.9559069,0.00027944,4]
[311654274,1705284646228,-360.13657355,0.00029041,2]
[311654275,1705284646237,-593.14,0.00029041,2]
[311654276,1705284646246,-884.28,0.00029041,2]
[311654277,1705284646255,-574.04,0.00029041,2]
[311654278,1705284646265,-500.0,0.00029041,2]
[311654279,1705284646280,-500.0,0.00029041,2]
[311654280,1705284646289,-190.31143093,0.00029041,2]
[311654343,1705285832688,-155.00465014,0.00024902,4]
[311654344,1705285832701,-204.71627508,0.00026666,2]
[311654345,1705285833283,-2921.31100883,0.00026666,2]
[311654347,1705285833294,-662.90711793,0.00026667,2]
[311654349,1705285833304,-274.36755231,0.00027,2]
[311654351,1705285833314,-81113.81175264,0.0002712,2]
[311654353,1705285833324,-23535.30980238,0.00027121,2]
[311654422,1705285839131,-371.40736221,0.00027121,2]
[311654423,1705285839140,-163.44885336,0.00027396,2]
[311654424,1705285839150,-272.84759383,0.00027396,2]
[311654425,1705285839159,-500.0,0.00027397,2]
[311654426,1705285839168,-500.0,0.00027397,2]
[311654427,1705285839178,-42.6530838,0.00027397,2]
[311654429,1705285839202,-194.61029564,0.00027397,2]
[311654430,1705285839212,-500.0,0.00027397,2]
[311654432,1705285839222,-207.61135533,0.00027397,2]
[311654434,1705285839234,-292.38864467,0.00027397,2]
[311654435,1705285839243,-241.6108843,0.00027397,2]
[311654436,1705285839255,-258.3891157,0.00027397,2]
[311654437,1705285839265,-500.0,0.00027397,2]
[311654438,1705285839274,-501.08034467,0.00027397,2]
[311654439,1705285839283,-502.8108887,0.00027397,2]
[311654440,1705285839292,-500.0,0.00027397,2]
[311654441,1705285839301,-500.0,0.00027397,2]
[311654442,1705285839311,-503.35354243,0.00027397,2]
[311654443,1705285839320,-502.26499882,0.00027397,2]
[311654444,1705285839330,-1065.68,0.00027397,2]
[311654445,1705285839339,-500.0,0.00027397,2]
[311654446,1705285839348,-500.0,0.00027397,2]
[311654447,1705285839357,-522.44209673,0.00027397,2]
[311654448,1705285839367,-504.49598516,0.00027397,2]
[311654449,1705285839376,-500.0,0.00027397,2]
[311654450,1705285839385,-500.0,0.00027397,2]
[311654451,1705285839394,-507.44,0.00027397,2]
[311654452,1705285839403,-1908.13,0.00027397,2]
[311654453,1705285839413,-500.0,0.00027397,2]
[311654454,1705285839422,-501.9226916,0.00027397,2]
[311654455,1705285839431,-1181.11,0.00027397,2]
[311654456,1705285839441,-719.38,0.00027397,2]
[311654457,1705285839450,-500.0,0.00027397,2]
[311654458,1705285839459,-500.0,0.00027397,2]
[311654459,1705285839468,-629.50201696,0.00027397,2]
[311654460,1705285839478,-2049.09,0.00027397,2]
[311654461,1705285839487,-502.29,0.00027397,2]
[311654462,1705285839496,-502.84505842,0.00027397,2]
[311654463,1705285839504,-509.92698359,0.00027397,2]
[311654464,1705285839513,-500.0,0.00027397,2]
[311654465,1705285839522,-500.0,0.00027397,2]
[311654466,1705285839532,-500.0,0.00027397,2]
[311654467,1705285839541,-501.06750293,0.00027397,2]
[311654468,1705285839550,-672.8,0.00027397,2]
[311654469,1705285839559,-523.08396244,0.00027397,2]
[311654470,1705285839568,-600.84545332,0.00027397,2]
[311654471,1705285839576,-500.0,0.00027397,2]
[311654472,1705285839585,-250.12257421,0.00027397,2]
[311654473,1705285839595,-501.54072563,0.00027397,2]
[311654474,1705285839604,-254.87564764,0.00027397,2]
[311654475,1705285839613,-500.0,0.00027397,2]
[311654476,1705285839622,-500.0,0.00027397,2]
[311654477,1705285839631,-501.40100245,0.00027397,2]
[311654478,1705285839640,-500.0,0.00027397,2]
[311654479,1705285839649,-500.0,0.00027397,2]
[311654480,1705285839658,-500.0,0.00027397,2]
[311654481,1705285839667,-503.53944648,0.00027397,2]
[311654482,1705285839676,-837.97,0.00027397,2]
[311654483,1705285839686,-500.0,0.00027397,2]
[311654484,1705285839695,-500.0,0.00027397,2]
[311654485,1705285839704,-500.0,0.00027397,2]
[311654486,1705285839713,-500.0,0.00027397,2]
[311654487,1705285839722,-500.0,0.00027397,2]
[311654488,1705285839732,-502.29616248,0.00027397,2]
[311654489,1705285839742,-500.0,0.00027397,2]
[311654490,1705285839751,-505.15095378,0.00027397,2]
[311654491,1705285839761,-415.79701904,0.00027397,2]
[311654492,1705285839769,-526.91670753,0.00027397,2]
[311654493,1705285839778,-503.63634839,0.00027397,2]
[311654494,1705285839787,-500.0,0.00027397,2]
[311654495,1705285839797,-1190.47,0.00027397,2]
[311654496,1705285839806,-509.16,0.00027397,2]
[311654497,1705285839815,-500.0,0.00027397,2]
[311654498,1705285839824,-515.07367928,0.00027397,2]
[311654499,1705285839833,-500.0,0.00027397,2]
[311654500,1705285839842,-500.0,0.00027397,2]
[311654501,1705285839851,-225.18716407,0.00027397,2]
[311654502,1705285839861,-374.146509,0.00027397,2]
[311654503,1705285839870,-348.96678123,0.00027397,2]
[311654504,1705285839879,-500.0,0.00027397,2]
[311654505,1705285839889,-500.73512296,0.00027397,2]
[311654506,1705285839898,-500.0,0.00027397,2]
[311654507,1705285839907,-627.74839216,0.00027397,2]
[311654508,1705285839916,-810.59,0.00027397,2]
[311654509,1705285839926,-204.80706745,0.00027397,2]
[311654510,1705285839935,-504.58019744,0.00027397,2]
[311654511,1705285839945,-500.0,0.00027397,2]
[311654512,1705285839954,-4582.69,0.00027397,2]
[311654513,1705285839963,-500.0,0.00027397,2]
[311654514,1705285839971,-500.0,0.00027397,2]
[311654515,1705285839980,-500.0,0.00027397,2]
[311654516,1705285839990,-610.33,0.00027397,2]
[311654517,1705285839999,-500.0,0.00027397,2]
[311654518,1705285840008,-574.47,0.00027397,2]
[311654519,1705285840017,-821.87,0.00027397,2]
[311654520,1705285840027,-500.0,0.00027397,2]
[311654521,1705285840037,-500.0,0.00027397,2]
[311654522,1705285840046,-501.30134004,0.00027397,2]
[311654523,1705285840055,-507.23683336,0.00027397,2]
[311654524,1705285840064,-517.22036158,0.00027397,2]
[311654525,1705285840074,-940.5,0.00027397,2]
[311654526,1705285840083,-500.0,0.00027397,2]
[311654527,1705285840092,-500.0,0.00027397,2]
[311654528,1705285840102,-500.0,0.00027397,2]
[311654529,1705285840111,-502.11426005,0.00027397,2]
[311654530,1705285840120,-500.0,0.00027397,2]
[311654531,1705285840129,-155.0,0.00027397,2]
[311654532,1705285840138,-500.0,0.00027397,2]
[311654533,1705285840148,-500.0,0.00027397,2]
[311654534,1705285840158,-500.0,0.00027397,2]
[311654535,1705285840167,-500.0,0.00027397,2]
[311654536,1705285840176,-500.0,0.00027397,2]
[311654537,1705285840185,-529.74269443,0.00027397,2]
[311654538,1705285840195,-1072.31,0.00027397,2]
[311654539,1705285840204,-550.77,0.00027397,2]
[311654540,1705285840213,-500.0,0.00027397,2]
[311654541,1705285840222,-628.23011085,0.00027397,2]
[311654542,1705285840231,-559.57981711,0.00027397,2]
[311654543,1705285840240,-500.0,0.00027397,2]
[311654544,1705285840250,-500.0,0.00027397,2]
[311654545,1705285840259,-1133.04,0.00027397,2]
[311654546,1705285840269,-1943.45,0.00027397,2]
[311654547,1705285840278,-500.0,0.00027397,2]
[311654548,1705285840287,-500.0,0.00027397,2]
[311654549,1705285840296,-11699.97,0.00027397,2]
[311654550,1705285840390,-500.0,0.00027397,2]
[311654551,1705285840400,-500.0,0.00027397,2]
[311654552,1705285840410,-792.09,0.00027397,2]
[311654553,1705285840419,-496.48027579,0.00027397,2]
[311654554,1705285840428,-500.0,0.00027397,2]
[311654555,1705285840437,-500.0,0.00027397,2]
[311654556,1705285840446,-500.0,0.00027397,2]
[311654557,1705285840455,-500.0,0.00027397,2]
[311654558,1705285840464,-500.0,0.00027397,2]
[311654559,1705285840473,-632.68,0.00027397,2]
[311654560,1705285840483,-500.0,0.00027397,2]
[311654561,1705285840492,-500.0,0.00027397,2]
[311654562,1705285840501,-2076.3,0.00027397,2]
[311654563,1705285840512,-500.29488324,0.00027397,2]
[311654564,1705285840522,-502.01063694,0.00027397,5]
[311654565,1705285840531,-500.0,0.00027397,2]
[311654566,1705285840540,-953.74,0.00027397,2]
[311654567,1705285840549,-502.34542097,0.00027397,2]
[311654568,1705285840558,-500.0,0.00027397,2]
[311654569,1705285840568,-500.85643977,0.00027397,2]
[311654570,1705285840577,-502.83385519,0.00027397,2]
[311654571,1705285840586,-3783.72,0.00027397,2]
[311654572,1705285840595,-500.0,0.00027397,2]
[311654573,1705285840605,-500.0,0.00027397,2]
[311654574,1705285840614,-18701.65,0.00027397,2]
[311654575,1705285840623,-500.0,0.00027397,2]
[311654576,1705285840632,-500.0,0.00027397,2]
[311654577,1705285840642,-500.0,0.00027397,2]
[311654578,1705285840651,-500.0,0.00027397,2]
[311654579,1705285840660,-500.0,0.00027397,2]
[311654581,1705285840669,-500.0,0.00027397,2]
[311654582,1705285840678,-500.0,0.00027397,2]
[311654583,1705285840688,-500.0,0.00027397,2]
[311654584,1705285840698,-500.0,0.00027397,2]
[311654585,1705285840707,-500.0,0.00027397,2]
[311654586,1705285840717,-500.0,0.00027397,2]
[311654587,1705285840726,-500.0,0.00027397,2]
[311654588,1705285840735,-500.0,0.00027397,2]
[311654589,1705285840744,-500.0,0.00027397,2]
[311654590,1705285840754,-576.8,0.00027397,2]
[311654591,1705285840763,-502.10441126,0.00027397,2]
[311654592,1705285840773,-500.0,0.00027397,2]
[311654594,1705285840782,-500.0,0.00027397,2]
[311654595,1705285840791,-500.0,0.00027397,2]
[311654596,1705285840800,-6528.64098091,0.000274,2]
[311654597,1705285840809,-509.5498702,0.00027534,2]
[311654598,1705285840819,-243.65116111,0.00027569,2]
[311654599,1705285840828,-155.26586896,0.0002757,2]
[311654600,1705285840839,-500.0,0.0002757,2]
[311654601,1705285840848,-441.66624271,0.0002757,2]
[311654602,1705285840858,-500.0,0.0002757,2]
[311654603,1705285840867,-500.0,0.0002757,2]
[311654604,1705285840881,-500.0,0.0002757,2]
[311654605,1705285840890,-557.54,0.0002757,2]
[311654607,1705285840899,-500.0,0.0002757,2]
[311654609,1705285840909,-500.0,0.0002757,2]
[311654610,1705285840919,-349.43807217,0.0002757,2]
[311654611,1705285840928,-500.0,0.0002757,2]
[311654612,1705285840937,-500.0,0.0002757,2]
[311654613,1705285840947,-500.0,0.0002757,2]
[311654614,1705285840957,-500.0,0.0002757,2]
[311654615,1705285840966,-502.38159096,0.0002757,2]
[311654616,1705285840975,-500.0,0.0002757,2]
[311654618,1705285840984,-500.0,0.0002757,2]
[311654620,1705285840993,-500.0,0.0002757,2]
[311654622,1705285841002,-490.0,0.0002757,2]
[311654624,1705285841011,-1469.81,0.0002757,2]
[311654625,1705285841020,-500.0,0.0002757,2]
[311654627,1705285841029,-500.0,0.0002757,2]
[311654628,1705285841038,-500.0,0.0002757,2]
[311654629,1705285841047,-563.49998224,0.0002757,2]
[311654630,1705285841057,-510.93448844,0.0002757,2]
[311654631,1705285841066,-500.0,0.0002757,2]
[311654632,1705285841076,-500.0,0.0002757,2]
[311654633,1705285841085,-504.91411394,0.0002757,2]
[311654634,1705285841094,-1035.08,0.0002757,2]
[311654635,1705285841103,-500.0,0.0002757,2]
[311654636,1705285841112,-5319.84,0.0002757,2]
[311654637,1705285841121,-6151.48,0.0002757,2]
[311654638,1705285841131,-3289.15,0.0002757,2]
[311654639,1705285841141,-350.0,0.0002757,2]
[311654640,1705285841151,-500.0,0.0002757,2]
[311654641,1705285841160,-500.0,0.0002757,2]
[311654642,1705285841169,-500.0,0.0002757,2]
[311654643,1705285841178,-500.0,0.0002757,2]
[311654644,1705285841195,-500.0,0.0002757,2]
[311654645,1705285841217,-500.0,0.0002757,2]
[311654646,1705285841241,-326.91284264,0.00027668,2]
[311654647,1705285841264,-361.88774736,0.00027669,2]
[311654648,1705285841287,-500.0,0.00027669,2]
[311654649,1705285841309,-9578.18352703,0.0002767,2]
[311654650,1705285841331,-500.0,0.0002767,2]
[311654651,1705285841356,-276.1,0.0002767,2]
[311654652,1705285841372,-500.0,0.0002767,2]
[311654653,1705285841381,-500.0,0.0002767,2]
[311654654,1705285841390,-500.0,0.0002767,2]
[311654655,1705285841399,-503.66933198,0.0002767,2]
[311654656,1705285841408,-460.30342684,0.0002767,2]
[311654657,1705285841419,-643.5204674,0.0002767,2]
[311654658,1705285841433,-500.0,0.0002767,2]
[311654659,1705285841447,-500.0,0.0002767,2]
[311654660,1705285841461,-186.0221303,0.0002767,2]
[311654661,1705285841474,-643.5204674,0.0002767,2]
[311654662,1705285841486,-500.0,0.0002767,2]
[311654663,1705285841496,-434.3154889,0.0002767,2]
[311654664,1705285841509,-502.55344223,0.0002767,2]
[311654665,1705285841522,-500.0,0.0002767,2]
[311654666,1705285841535,-643.5204674,0.0002767,2]
[311654667,1705285841548,-500.0,0.0002767,2]
[311654668,1705285841560,-449.15448913,0.0002767,2]
[311654669,1705285841572,-643.5204674,0.0002767,2]
[311654670,1705285841585,-500.0,0.0002767,2]
[311654671,1705285841597,-643.5204674,0.0002767,2]
[311654672,1705285841607,-500.0,0.0002767,2]
[311654674,1705285841618,-643.5204674,0.0002767,2]
[311654675,1705285841630,-643.5204674,0.0002767,2]
[311654676,1705285841641,-643.5204674,0.0002767,2]
[311654677,1705285841652,-500.0,0.0002767,2]
[311654678,1705285841662,-500.0,0.0002767,2]
[311654679,1705285841673,-500.0,0.0002767,2]
[311654680,1705285841685,-643.5204674,0.0002767,2]
[311654681,1705285841697,-274.13785422,0.0002767,2]
[311654682,1705285841707,-643.5204674,0.0002767,2]
[311654683,1705285841717,-643.5204674,0.0002767,2]
[311654684,1705285841726,-458.9899639,0.0002767,2]
[311654685,1705285841739,-643.5204674,0.0002767,2]
[311654686,1705285841750,-500.0,0.0002767,2]
[311654687,1705285841762,-500.0,0.0002767,2]
[311654688,1705285841775,-643.5204674,0.0002767,2]
[311654689,1705285841786,-500.0,0.0002767,2]
[311654690,1705285841798,-500.0,0.0002767,2]
[311654691,1705285841809,-643.5204674,0.0002767,2]
[311654692,1705285841820,-643.5204674,0.0002767,2]
[311654693,1705285841832,-500.0,0.0002767,2]
[311654694,1705285841843,-643.5204674,0.0002767,2]
[311654695,1705285841855,-500.0,0.0002767,2]
[311654696,1705285841867,-500.0,0.0002767,2]
[311654697,1705285841881,-643.5204674,0.0002767,2]
[311654698,1705285841893,-500.0,0.0002767,2]
[311654699,1705285841905,-500.0,0.0002767,2]
[311654700,1705285841915,-643.5204674,0.0002767,2]
[311654701,1705285841926,-643.5204674,0.0002767,2]
[311654702,1705285841937,-643.5204674,0.0002767,2]
[311654703,1705285841947,-643.5204674,0.0002767,2]
[311654704,1705285841960,-643.5204674,0.0002767,2]
[311654705,1705285841972,-643.5204674,0.0002767,2]
[311654706,1705285841982,-643.5204674,0.0002767,2]
[311654707,1705285841994,-643.5204674,0.0002767,2]
[311654708,1705285842005,-643.5204674,0.0002767,2]
[311654709,1705285842016,-643.5204674,0.0002767,2]
[311654710,1705285842026,-643.5204674,0.0002767,2]
[311654711,1705285842037,-500.0,0.00027671,2]
[311654712,1705285842047,-500.0,0.00027671,2]
[311654713,1705285842058,-500.0,0.00027671,2]
[311654714,1705285842069,-507.70866231,0.00027671,2]
[311654715,1705285842080,-500.0,0.00027671,2]
[311654716,1705285842091,-1065.68,0.00027671,2]
[311654717,1705285842102,-500.0,0.00027671,2]
[311654718,1705285842112,-500.0,0.00027671,2]
[311654719,1705285842124,-507.44,0.00027671,2]
[311654720,1705285842135,-500.0,0.00027671,2]
[311654721,1705285842146,-1908.13,0.00027671,2]
[311654722,1705285842156,-1181.11,0.00027671,2]
[311654723,1705285842168,-719.38,0.00027671,2]
[311654724,1705285842178,-503.45776343,0.00027671,2]
[311654725,1705285842189,-500.0,0.00027671,2]
[311654726,1705285842200,-2049.09,0.00027671,2]
[311654727,1705285842211,-502.29,0.00027671,2]
[311654728,1705285842221,-672.8,0.00027671,2]
[311654729,1705285842232,-500.0,0.00027671,2]
[311654730,1705285842243,-500.0,0.00027671,2]
[311654731,1705285842253,-518.86247278,0.00027671,2]
[311654732,1705285842264,-837.97,0.00027671,2]
[311654733,1705285842274,-500.0,0.00027671,2]
[311654734,1705285842285,-500.0,0.00027671,2]
[311654735,1705285842296,-500.0,0.00027671,2]
[311654736,1705285842306,-509.6842685,0.00027671,2]
[311654737,1705285842317,-500.0,0.00027671,2]
[311654738,1705285842327,-1190.47,0.00027671,2]
[311654739,1705285842338,-509.16,0.00027671,2]
[311654740,1705285842348,-500.0,0.00027671,2]
[311654741,1705285842359,-500.0,0.00027671,2]
[311654742,1705285842370,-500.0,0.00027671,2]
[311654743,1705285842380,-810.59,0.00027671,2]
[311654744,1705285842391,-500.0,0.00027671,2]
[311654745,1705285842402,-4582.69,0.00027671,2]
[311654746,1705285842412,-500.0,0.00027671,2]
[311654747,1705285842423,-501.61315513,0.00027671,2]
[311654748,1705285842434,-610.33,0.00027671,2]
[311654749,1705285842447,-506.63455425,0.00027671,2]
[311654750,1705285842457,-574.47,0.00027671,2]
[311654751,1705285842468,-821.87,0.00027671,2]
[311654752,1705285842479,-500.0,0.00027671,2]
[311654753,1705285842490,-500.0,0.00027671,2]
[311654754,1705285842604,-940.5,0.00027671,2]
[311654755,1705285842619,-500.0,0.00027671,2]
[311654756,1705285842629,-500.0,0.00027671,2]
[311654757,1705285842638,-1072.31,0.00027671,2]
[311654758,1705285842647,-550.77,0.00027671,2]
[311654759,1705285842656,-500.0,0.00027671,2]
[311654760,1705285842665,-1133.04,0.00027671,2]
[311654761,1705285842674,-500.0,0.00027671,2]
[311654762,1705285842684,-1943.45,0.00027671,2]
[311654763,1705285842693,-11699.97,0.00027671,2]
[311654764,1705285842702,-502.1632738,0.00027671,2]
[311654765,1705285842711,-792.09,0.00027671,2]
[311654766,1705285842720,-502.23369092,0.00027671,2]
[311654767,1705285842730,-500.0,0.00027671,2]
[311654768,1705285842739,-632.68,0.00027671,2]
[311654769,1705285842748,-2076.3,0.00027671,2]
[311654770,1705285842757,-953.74,0.00027671,2]
[311654771,1705285842767,-500.0,0.00027671,2]
[311654772,1705285842777,-3783.72,0.00027671,2]
[311654773,1705285842786,-500.0,0.00027671,2]
[311654774,1705285842796,-253.24117854,0.00027671,2]
[311654775,1705285842805,-18701.65,0.00027671,2]
[311654776,1705285842814,-500.0,0.00027671,2]
[311654777,1705285842825,-500.0,0.00027671,2]
[311654778,1705285842834,-500.0,0.00027671,2]
[311654779,1705285842844,-500.0,0.00027671,2]
[311654780,1705285842853,-500.0,0.00027671,2]
[311654781,1705285842863,-506.06741952,0.00027671,2]
[311654782,1705285842873,-576.8,0.00027671,2]
[311654783,1705285842887,-623.49430112,0.00027671,2]
[311654784,1705285842896,-688.3625771,0.000277,2]
[311654785,1705285842905,-500.0,0.00027844,2]
[311654786,1705285842914,-263.87300385,0.00027844,2]
[311654787,1705285842925,-500.0,0.00027844,2]
[311654788,1705285842934,-557.54,0.00027844,2]
[311654789,1705285842944,-507.33605451,0.00027844,2]
[311654790,1705285842954,-500.0,0.00027844,2]
[311654791,1705285842963,-500.0,0.00027844,2]
[311654792,1705285842972,-500.0,0.00027844,2]
[311654793,1705285842982,-501.93703226,0.00027844,2]
[311654794,1705285842991,-312.25901407,0.00027844,2]
[311654795,1705285843000,-500.0,0.00027844,2]
[311654796,1705285843009,-1469.81,0.00027844,2]
[311654797,1705285843018,-256.89112284,0.00027844,2]
[311654798,1705285843028,-500.0,0.00027844,2]
[311654799,1705285843037,-500.0,0.00027844,2]
[311654800,1705285843046,-500.0,0.00027844,2]
[311654802,1705285843055,-1035.08,0.00027844,2]
[311654803,1705285843065,-500.0,0.00027844,2]
[311654804,1705285843074,-5319.84,0.00027844,2]
[311654806,1705285843084,-6151.48,0.00027844,2]
[311654807,1705285843093,-3289.15,0.00027844,2]